[Event "Early-Titled-Tuesday-Blitz-May-07-2024"]
[Site "Chess.com"]
[Date "2024.05.07"]
[Round "10"]
[White "jinxy2009"]
[Black "kacperkarwowski"]
[Result "0-1"]
[WhiteElo "2269"]
[BlackElo "2499"]
[TimeControl "180+1"]
[EndTime "10:00:57 PDT"]
[Termination "kacperkarwowski won by resignation"]

1. e4 {[%clk 0:03:00.9]} 1... e6 {[%clk 0:02:57.6]} 2. d4 {[%clk 0:02:59.7]}
2... d5 {[%clk 0:02:48]} 3. Nc3 {[%clk 0:02:57.5]} 3... dxe4 {[%clk 0:02:40.6]}
4. Nxe4 {[%clk 0:02:56.6]} 4... Bd7 {[%clk 0:02:40.6]} 5. Nf3 {[%clk 0:02:45.5]}
5... Bc6 {[%clk 0:02:39.7]} 6. Ng3 {[%clk 0:02:45.5]} 6... Nf6 {[%clk
0:02:34.2]} 7. Bd3 {[%clk 0:02:43.9]} 7... Bxf3 {[%clk 0:02:29.9]} 8. Qxf3
{[%clk 0:02:43.4]} 8... c6 {[%clk 0:02:30.3]} 9. c3 {[%clk 0:02:43.3]} 9... Nbd7
{[%clk 0:02:29.6]} 10. Bf4 {[%clk 0:02:42.5]} 10... Be7 {[%clk 0:02:16.7]} 11.
O-O-O {[%clk 0:02:42]} 11... Nd5 {[%clk 0:02:14.1]} 12. Bd2 {[%clk 0:02:41.3]}
12... b5 {[%clk 0:02:08.4]} 13. Nh5 {[%clk 0:02:38.5]} 13... Bf6 {[%clk
0:01:55.7]} 14. g4 {[%clk 0:02:32.7]} 14... g6 {[%clk 0:01:52]} 15. Nxf6+ {[%clk
0:02:29.2]} 15... Qxf6 {[%clk 0:01:51.9]} 16. Qxf6 {[%clk 0:02:28.8]} 16...
N7xf6 {[%clk 0:01:52.8]} 17. f3 {[%clk 0:02:28.9]} 17... h5 {[%clk 0:01:50.7]}
18. g5 {[%clk 0:02:28.8]} 18... Nd7 {[%clk 0:01:50.7]} 19. h4 {[%clk 0:02:26.8]}
19... N7b6 {[%clk 0:01:46]} 20. b3 {[%clk 0:02:26.5]} 20... O-O-O {[%clk
0:01:28.8]} 21. Kc2 {[%clk 0:02:20.8]} 21... Ne7 {[%clk 0:01:21.8]} 22. Bf4
{[%clk 0:02:16.7]} 22... Nf5 {[%clk 0:01:17.2]} 23. Be5 {[%clk 0:02:12.5]} 23...
Ne3+ {[%clk 0:01:14.1]} 24. Kd2 {[%clk 0:02:11.7]} 24... Nxd1 {[%clk 0:01:14.4]}
25. Bxh8 {[%clk 0:02:10.9]} 25... Nf2 {[%clk 0:01:14]} 26. Rf1 {[%clk
0:02:02.7]} 26... Nxd3 {[%clk 0:01:13.6]} 27. Bf6 {[%clk 0:02:02.9]} 27... Nf4
{[%clk 0:01:05.2]} 28. Bxd8 {[%clk 0:01:58.9]} 28... Kxd8 {[%clk 0:01:06.1]} 29.
Rc1 {[%clk 0:01:54.7]} 29... Kd7 {[%clk 0:01:04.9]} 30. c4 {[%clk 0:01:55]}
30... bxc4 {[%clk 0:00:50]} 31. bxc4 {[%clk 0:01:55.9]} 31... c5 {[%clk
0:00:50.7]} 32. dxc5 {[%clk 0:01:50.4]} 32... Na4 {[%clk 0:00:50.7]} 33. Ke3
{[%clk 0:01:47.3]} 33... e5 {[%clk 0:00:37.3]} 34. Rd1+ {[%clk 0:01:45.4]} 34...
Kc7 {[%clk 0:00:24.4]} 35. Ke4 {[%clk 0:01:41.3]} 35... Nc3+ {[%clk 0:00:22.5]}
36. Kxe5 {[%clk 0:01:41.4]} 36... Nxd1 {[%clk 0:00:23]} 37. Kf6 {[%clk
0:01:42.3]} 37... Kc6 {[%clk 0:00:20.9]} 38. Kxf7 {[%clk 0:01:42.2]} 38... Nf2
{[%clk 0:00:21.1]} 0-1

[Event "Early-Titled-Tuesday-Blitz-May-07-2024"]
[Site "Chess.com"]
[Date "2024.05.07"]
[Round "10"]
[White "cthulhuuu"]
[Black "wqws"]
[Result "1-0"]
[WhiteElo "2546"]
[BlackElo "2674"]
[TimeControl "180+1"]
[EndTime "10:01:01 PDT"]
[Termination "cthulhuuu won by resignation"]

1. e4 {[%clk 0:02:59.2]} 1... e5 {[%clk 0:02:57.4]} 2. Nf3 {[%clk 0:02:59.3]}
2... Nc6 {[%clk 0:02:57.9]} 3. d3 {[%clk 0:02:59.8]} 3... Nf6 {[%clk 0:02:57.9]}
4. g3 {[%clk 0:03:00.3]} 4... Bc5 {[%clk 0:02:58.3]} 5. Bg2 {[%clk 0:03:00.8]}
5... d6 {[%clk 0:02:58.8]} 6. O-O {[%clk 0:03:00.7]} 6... h5 {[%clk 0:02:59.2]}
7. h3 {[%clk 0:03:00.2]} 7... Be6 {[%clk 0:02:58]} 8. c3 {[%clk 0:03:00]} 8...
Bb6 {[%clk 0:02:57]} 9. b4 {[%clk 0:02:58.9]} 9... Qc8 {[%clk 0:02:54.4]} 10.
Ng5 {[%clk 0:02:57.1]} 10... h4 {[%clk 0:02:51.2]} 11. Nxe6 {[%clk 0:02:52.2]}
11... Qxe6 {[%clk 0:02:49.9]} 12. g4 {[%clk 0:02:52.4]} 12... Ne7 {[%clk
0:02:49.1]} 13. Nd2 {[%clk 0:02:33.3]} 13... c6 {[%clk 0:02:49.1]} 14. Nc4
{[%clk 0:02:31.8]} 14... Bc7 {[%clk 0:02:48.5]} 15. f4 {[%clk 0:02:31.4]} 15...
exf4 {[%clk 0:02:46]} 16. Bxf4 {[%clk 0:02:32.3]} 16... Ng6 {[%clk 0:02:45.5]}
17. Bh2 {[%clk 0:02:25.8]} 17... O-O-O {[%clk 0:02:45.3]} 18. Qa4 {[%clk
0:02:11.7]} 18... Kb8 {[%clk 0:02:41.1]} 19. b5 {[%clk 0:02:11.9]} 19... Nxg4
{[%clk 0:02:27.9]} 20. hxg4 {[%clk 0:02:00.7]} 20... h3 {[%clk 0:02:28.2]} 21.
Bf3 {[%clk 0:01:55.2]} 21... Nh4 {[%clk 0:02:27.4]} 22. bxc6 {[%clk 0:01:47.1]}
22... Nxf3+ {[%clk 0:02:26.5]} 23. Rxf3 {[%clk 0:01:48]} 23... Qxg4+ {[%clk
0:02:25.1]} 24. Rg3 {[%clk 0:01:47.7]} 24... Qe2 {[%clk 0:02:19.4]} 25. Qb5
{[%clk 0:01:33.5]} 25... Bb6+ {[%clk 0:02:09.7]} 26. Nxb6 {[%clk 0:01:33.4]}
26... a6 {[%clk 0:01:58.8]} 27. Qb3 {[%clk 0:01:08.9]} 27... Rh6 {[%clk
0:01:28.6]} 28. Nd7+ {[%clk 0:01:01.2]} 28... Rxd7 {[%clk 0:01:24.7]} 29. cxd7
{[%clk 0:01:02.1]} 29... Kc7 {[%clk 0:01:16]} 30. Qxf7 {[%clk 0:00:59.1]} 30...
Rf6 {[%clk 0:01:11.7]} 31. d8=Q+ {[%clk 0:00:54.3]} 31... Kxd8 {[%clk
0:01:10.7]} 32. Qg8+ {[%clk 0:00:54.1]} 32... Ke7 {[%clk 0:01:07.1]} 33. Rxg7+
{[%clk 0:00:51.5]} 1-0

[Event "Early-Titled-Tuesday-Blitz-May-07-2024"]
[Site "Chess.com"]
[Date "2024.05.07"]
[Round "10"]
[White "unbreakablepawn35"]
[Black "betta2004"]
[Result "1-0"]
[WhiteElo "2431"]
[BlackElo "2518"]
[TimeControl "180+1"]
[EndTime "10:01:02 PDT"]
[Termination "unbreakablepawn35 won by resignation"]

1. c4 {[%clk 0:03:00.9]} 1... e5 {[%clk 0:02:59.5]} 2. Nc3 {[%clk 0:03:00.8]}
2... c6 {[%clk 0:02:59.8]} 3. Nf3 {[%clk 0:02:59.8]} 3... Bb4 {[%clk 0:03:00.4]}
4. Qc2 {[%clk 0:02:56.1]} 4... Qf6 {[%clk 0:03:00.7]} 5. a3 {[%clk 0:02:52]}
5... Bxc3 {[%clk 0:03:00.8]} 6. Qxc3 {[%clk 0:02:52.3]} 6... d6 {[%clk
0:03:01.7]} 7. d4 {[%clk 0:02:44]} 7... exd4 {[%clk 0:02:59.3]} 8. Qxd4 {[%clk
0:02:42.1]} 8... Qxd4 {[%clk 0:02:59]} 9. Nxd4 {[%clk 0:02:43]} 9... Nf6 {[%clk
0:02:59.7]} 10. g3 {[%clk 0:02:30.6]} 10... O-O {[%clk 0:02:53.9]} 11. Bg2
{[%clk 0:02:30.7]} 11... Na6 {[%clk 0:02:50.5]} 12. Bg5 {[%clk 0:02:27.5]} 12...
Be6 {[%clk 0:02:43.7]} 13. Bxf6 {[%clk 0:02:22.1]} 13... gxf6 {[%clk 0:02:43.4]}
14. Rc1 {[%clk 0:02:14.3]} 14... Rfe8 {[%clk 0:02:41.8]} 15. e3 {[%clk
0:02:12.5]} 15... Nc5 {[%clk 0:02:41.8]} 16. Kd2 {[%clk 0:02:09.6]} 16... a5
{[%clk 0:02:41.8]} 17. h4 {[%clk 0:01:56]} 17... a4 {[%clk 0:02:40.1]} 18. h5
{[%clk 0:01:54.7]} 18... h6 {[%clk 0:02:39.9]} 19. Rh4 {[%clk 0:01:53.1]} 19...
Kg7 {[%clk 0:02:39.1]} 20. Kc3 {[%clk 0:01:47.3]} 20... f5 {[%clk 0:02:38.5]}
21. Rf4 {[%clk 0:01:45.8]} 21... Ra6 {[%clk 0:02:35.2]} 22. Bh3 {[%clk
0:01:36.7]} 22... Rb6 {[%clk 0:02:34.7]} 23. Bxf5 {[%clk 0:01:34.1]} 23... Bxf5
{[%clk 0:02:34.8]} 24. Nxf5+ {[%clk 0:01:27.5]} 24... Kh7 {[%clk 0:02:29.1]} 25.
Nxd6 {[%clk 0:01:25.7]} 25... Rd8 {[%clk 0:02:27.3]} 26. Rxf7+ {[%clk
0:01:11.5]} 26... Kg8 {[%clk 0:02:26.8]} 27. Rf6 {[%clk 0:01:11.3]} 27... Rxd6
{[%clk 0:02:26.3]} 28. Rxd6 {[%clk 0:01:08.9]} 28... Ne4+ {[%clk 0:02:26.4]} 29.
Kc2 {[%clk 0:00:54.6]} 29... Nxd6 {[%clk 0:02:26.3]} 30. c5 {[%clk 0:00:55]}
30... Rb5 {[%clk 0:02:26]} 31. cxd6 {[%clk 0:00:55.1]} 31... Rc5+ {[%clk
0:02:26.5]} 32. Kd2 {[%clk 0:00:42]} 32... Rd5+ {[%clk 0:02:27]} 33. Ke2 {[%clk
0:00:42.4]} 33... Rxd6 {[%clk 0:02:27.2]} 34. Rd1 {[%clk 0:00:43]} 34... Re6
{[%clk 0:02:27.6]} 35. Rd7 {[%clk 0:00:41.8]} 35... b6 {[%clk 0:02:19.7]} 36. f4
{[%clk 0:00:39.9]} 36... Re4 {[%clk 0:02:16.6]} 37. Kd3 {[%clk 0:00:39.9]} 37...
Re6 {[%clk 0:02:16.1]} 38. e4 {[%clk 0:00:40]} 38... Kf8 {[%clk 0:02:15.3]} 39.
e5 {[%clk 0:00:39.4]} 39... Ke8 {[%clk 0:02:15.4]} 40. Rd6 {[%clk 0:00:27.1]}
40... Rxd6+ {[%clk 0:02:15.6]} 41. exd6 {[%clk 0:00:27.9]} 41... Kd7 {[%clk
0:02:16.5]} 42. g4 {[%clk 0:00:26]} 42... Kxd6 {[%clk 0:02:16.9]} 43. g5 {[%clk
0:00:26.6]} 43... Ke6 {[%clk 0:02:16.8]} 44. g6 {[%clk 0:00:20.5]} 44... Kf6
{[%clk 0:02:16.6]} 45. Kd4 {[%clk 0:00:21]} 45... Kg7 {[%clk 0:02:16]} 46. Ke5
{[%clk 0:00:21]} 46... b5 {[%clk 0:02:15.3]} 47. f5 {[%clk 0:00:21.3]} 47... c5
{[%clk 0:02:13.9]} 48. f6+ {[%clk 0:00:21.7]} 48... Kf8 {[%clk 0:02:13.8]} 49.
Kd5 {[%clk 0:00:18.5]} 49... b4 {[%clk 0:02:13.5]} 50. Kxc5 {[%clk 0:00:18.2]}
50... bxa3 {[%clk 0:02:14]} 51. bxa3 {[%clk 0:00:18.8]} 51... Kg8 {[%clk
0:02:14.9]} 52. Kb4 {[%clk 0:00:19.1]} 52... Kf8 {[%clk 0:02:15.8]} 53. Kxa4
{[%clk 0:00:19.9]} 53... Kg8 {[%clk 0:02:16.7]} 54. Kb5 {[%clk 0:00:20.1]} 54...
Kf8 {[%clk 0:02:17.6]} 55. Kc6 {[%clk 0:00:20.8]} 55... Ke8 {[%clk 0:02:18.5]}
56. a4 {[%clk 0:00:21.3]} 56... Kf8 {[%clk 0:02:18.3]} 57. a5 {[%clk 0:00:22.2]}
1-0

[Event "Early-Titled-Tuesday-Blitz-May-07-2024"]
[Site "Chess.com"]
[Date "2024.05.07"]
[Round "10"]
[White "Caroexpert"]
[Black "Zhigalko_Sergei"]
[Result "0-1"]
[WhiteElo "2677"]
[BlackElo "2879"]
[TimeControl "180+1"]
[EndTime "10:01:05 PDT"]
[Termination "Zhigalko_Sergei won by resignation"]

1. d4 {[%clk 0:03:00.9]} 1... Nf6 {[%clk 0:03:00.3]} 2. c4 {[%clk 0:03:00.8]}
2... e6 {[%clk 0:03:00.8]} 3. Nc3 {[%clk 0:02:59.5]} 3... Bb4 {[%clk 0:03:01]}
4. e3 {[%clk 0:02:59.5]} 4... O-O {[%clk 0:03:01.1]} 5. Bd3 {[%clk 0:02:59.1]}
5... d5 {[%clk 0:03:00.7]} 6. a3 {[%clk 0:02:59.4]} 6... Bxc3+ {[%clk
0:03:00.2]} 7. bxc3 {[%clk 0:02:59.7]} 7... c5 {[%clk 0:02:52.2]} 8. Ne2 {[%clk
0:02:57.2]} 8... Nc6 {[%clk 0:02:52.5]} 9. O-O {[%clk 0:02:53.7]} 9... dxc4
{[%clk 0:02:47]} 10. Bxc4 {[%clk 0:02:53.9]} 10... e5 {[%clk 0:02:47.9]} 11. Bb2
{[%clk 0:02:40]} 11... Re8 {[%clk 0:02:43]} 12. Ba2 {[%clk 0:02:37]} 12... Be6
{[%clk 0:02:22]} 13. Bb1 {[%clk 0:01:52.6]} 13... Bc4 {[%clk 0:02:18.3]} 14. Re1
{[%clk 0:01:44]} 14... Rc8 {[%clk 0:02:15.2]} 15. Bd3 {[%clk 0:01:35]} 15... Na5
{[%clk 0:02:11.3]} 16. Ng3 {[%clk 0:01:24.3]} 16... e4 {[%clk 0:02:10.1]} 17.
Bc2 {[%clk 0:01:22]} 17... Qb6 {[%clk 0:02:04]} 18. Rb1 {[%clk 0:01:15.1]} 18...
Ba2 {[%clk 0:02:01.4]} 19. f3 {[%clk 0:01:09.8]} 19... Bxb1 {[%clk 0:01:58.8]}
20. Qxb1 {[%clk 0:01:09.4]} 20... exf3 {[%clk 0:01:45.8]} 21. gxf3 {[%clk
0:01:09.3]} 21... Nc4 {[%clk 0:01:02.7]} 22. Bc1 {[%clk 0:01:07.2]} 22... Qxb1
{[%clk 0:00:54.7]} 23. Bxb1 {[%clk 0:01:08.1]} 23... Nd5 {[%clk 0:00:54.9]} 24.
e4 {[%clk 0:00:55.6]} 24... Nxc3 {[%clk 0:00:52.8]} 25. Bd3 {[%clk 0:00:50.9]}
25... cxd4 {[%clk 0:00:52.8]} 26. Nf5 {[%clk 0:00:51.2]} 26... Ne5 {[%clk
0:00:46.4]} 0-1

[Event "Early-Titled-Tuesday-Blitz-May-07-2024"]
[Site "Chess.com"]
[Date "2024.05.07"]
[Round "10"]
[White "BashirovKemal"]
[Black "biveklama"]
[Result "1-0"]
[WhiteElo "2680"]
[BlackElo "2535"]
[TimeControl "180+1"]
[EndTime "10:01:05 PDT"]
[Termination "BashirovKemal won on time"]

1. e4 {[%clk 0:03:00.9]} 1... c5 {[%clk 0:02:57.2]} 2. Nf3 {[%clk 0:03:01.2]}
2... d6 {[%clk 0:02:57.3]} 3. d4 {[%clk 0:03:01.7]} 3... cxd4 {[%clk 0:02:58]}
4. Nxd4 {[%clk 0:03:02.6]} 4... Nf6 {[%clk 0:02:58.6]} 5. Nc3 {[%clk 0:03:03.2]}
5... e5 {[%clk 0:02:59.3]} 6. Nb3 {[%clk 0:03:01.5]} 6... Be7 {[%clk 0:02:58.5]}
7. Be2 {[%clk 0:03:01.5]} 7... O-O {[%clk 0:02:57.3]} 8. O-O {[%clk 0:03:01.6]}
8... Be6 {[%clk 0:02:56.5]} 9. Kh1 {[%clk 0:02:56.5]} 9... Nc6 {[%clk
0:02:53.9]} 10. f4 {[%clk 0:02:54.4]} 10... exf4 {[%clk 0:02:54]} 11. Bxf4
{[%clk 0:02:55.3]} 11... d5 {[%clk 0:02:54.5]} 12. e5 {[%clk 0:02:41.1]} 12...
Ne4 {[%clk 0:02:54.6]} 13. Nxe4 {[%clk 0:02:25.6]} 13... dxe4 {[%clk 0:02:54.6]}
14. Qe1 {[%clk 0:02:25.7]} 14... f5 {[%clk 0:02:37.8]} 15. exf6 {[%clk
0:02:14.2]} 15... Bxf6 {[%clk 0:02:31.1]} 16. Rd1 {[%clk 0:02:13.3]} 16... Qb6
{[%clk 0:02:25.9]} 17. Bd6 {[%clk 0:02:12.2]} 17... Rf7 {[%clk 0:02:16.3]} 18.
Nc5 {[%clk 0:01:54.5]} 18... Nd4 {[%clk 0:01:49.4]} 19. Nxe6 {[%clk 0:01:50.6]}
19... Nxe6 {[%clk 0:01:40]} 20. Bc4 {[%clk 0:01:48.7]} 20... Re8 {[%clk
0:01:27.7]} 21. Qxe4 {[%clk 0:01:47.4]} 21... Qc6 {[%clk 0:00:55.5]} 22. Qxc6
{[%clk 0:01:47]} 22... bxc6 {[%clk 0:00:55.4]} 23. Rfe1 {[%clk 0:01:47.6]} 23...
Bh4 {[%clk 0:00:12]} 24. Rxe6 {[%clk 0:01:40.7]} 24... Rd8 {[%clk 0:00:01.5]}
25. g3 {[%clk 0:01:31.8]} 25... Bf6 {[%clk 0:00:01.1]} 26. Rde1 {[%clk
0:01:29.1]} 1-0

[Event "Early-Titled-Tuesday-Blitz-May-07-2024"]
[Site "Chess.com"]
[Date "2024.05.07"]
[Round "10"]
[White "Stanbad1"]
[Black "vanyakuba"]
[Result "1-0"]
[WhiteElo "2605"]
[BlackElo "2441"]
[TimeControl "180+1"]
[EndTime "10:01:11 PDT"]
[Termination "Stanbad1 won by resignation"]

1. d4 {[%clk 0:03:00.9]} 1... d5 {[%clk 0:02:56.7]} 2. Nc3 {[%clk 0:03:01.1]}
2... Nf6 {[%clk 0:02:56.5]} 3. Bf4 {[%clk 0:03:00.9]} 3... a6 {[%clk 0:02:56]}
4. e3 {[%clk 0:03:01.1]} 4... e6 {[%clk 0:02:54.7]} 5. Bd3 {[%clk 0:03:00.9]}
5... c5 {[%clk 0:02:54.7]} 6. dxc5 {[%clk 0:03:00.9]} 6... Bxc5 {[%clk
0:02:54.5]} 7. Nf3 {[%clk 0:03:01.3]} 7... Nc6 {[%clk 0:02:54.2]} 8. O-O {[%clk
0:02:55.6]} 8... b5 {[%clk 0:02:45.5]} 9. e4 {[%clk 0:02:54.8]} 9... d4 {[%clk
0:02:43.2]} 10. e5 {[%clk 0:02:50.3]} 10... dxc3 {[%clk 0:02:10.8]} 11. exf6
{[%clk 0:02:50.4]} 11... gxf6 {[%clk 0:01:51.8]} 12. bxc3 {[%clk 0:02:48.9]}
12... Bb7 {[%clk 0:01:49.5]} 13. Qe2 {[%clk 0:02:47.7]} 13... Ne7 {[%clk
0:01:39.9]} 14. c4 {[%clk 0:02:43.6]} 14... b4 {[%clk 0:01:36.6]} 15. Nd2 {[%clk
0:02:42]} 15... f5 {[%clk 0:01:27.8]} 16. Nb3 {[%clk 0:02:40.5]} 16... Bd6
{[%clk 0:01:13.7]} 17. Bg5 {[%clk 0:02:38.1]} 17... Rg8 {[%clk 0:01:09.8]} 18.
f4 {[%clk 0:02:35.8]} 18... f6 {[%clk 0:00:43.9]} 19. Qxe6 {[%clk 0:02:31.5]}
19... fxg5 {[%clk 0:00:43.9]} 20. Rae1 {[%clk 0:02:29.4]} 20... Rg6 {[%clk
0:00:37.6]} 21. Qxf5 {[%clk 0:02:28.4]} 21... gxf4 {[%clk 0:00:30.9]} 22. Qh5
{[%clk 0:02:28.3]} 22... Kd7 {[%clk 0:00:12.9]} 23. Bxg6 {[%clk 0:02:24.9]}
23... Nxg6 {[%clk 0:00:09.9]} 24. Qxh7+ {[%clk 0:02:24.3]} 24... Ne7 {[%clk
0:00:09.3]} 25. Rd1 {[%clk 0:02:23.4]} 25... Qg8 {[%clk 0:00:05.7]} 26. Nc5+
{[%clk 0:02:21.4]} 26... Kc6 {[%clk 0:00:05.2]} 27. Qxg8 {[%clk 0:02:19.8]}
27... Rxg8 {[%clk 0:00:04.4]} 28. Nxb7 {[%clk 0:02:19.7]} 28... Bc7 {[%clk
0:00:01.7]} 29. Rfe1 {[%clk 0:02:15.8]} 29... Nf5 {[%clk 0:00:02]} 30. Rd5
{[%clk 0:02:14.8]} 30... Ne3 {[%clk 0:00:02.2]} 31. Na5+ {[%clk 0:02:12.6]}
31... Kb6 {[%clk 0:00:02]} 32. Rh5 {[%clk 0:02:10.3]} 32... Rxg2+ {[%clk
0:00:02.5]} 33. Kh1 {[%clk 0:02:10.7]} 33... Rxc2 {[%clk 0:00:02.9]} 34. Nb3
{[%clk 0:02:10.5]} 34... Rxc4 {[%clk 0:00:02.9]} 35. Rh7 {[%clk 0:02:06.4]}
35... Rc6 {[%clk 0:00:03.1]} 36. Rf7 {[%clk 0:02:06.1]} 36... Bd6 {[%clk
0:00:03.2]} 37. h4 {[%clk 0:02:04.2]} 37... Nc4 {[%clk 0:00:03.1]} 38. h5 {[%clk
0:02:03.7]} 38... Be5 {[%clk 0:00:03.6]} 39. Re4 {[%clk 0:02:02]} 39... Nd2
{[%clk 0:00:02.9]} 40. Rxe5 {[%clk 0:02:01.9]} 40... Nxb3 {[%clk 0:00:02.9]} 41.
axb3 {[%clk 0:01:58.1]} 41... Rc3 {[%clk 0:00:03]} 42. Rxf4 {[%clk 0:01:58]}
42... Rxb3 {[%clk 0:00:02.8]} 43. Rh4 {[%clk 0:01:57.9]} 43... a5 {[%clk
0:00:02.8]} 44. h6 {[%clk 0:01:57.9]} 44... Rb1+ {[%clk 0:00:03.7]} 45. Kh2
{[%clk 0:01:58]} 1-0

[Event "Early-Titled-Tuesday-Blitz-May-07-2024"]
[Site "Chess.com"]
[Date "2024.05.07"]
[Round "10"]
[White "AcostaPablo"]
[Black "lamomiajunior"]
[Result "0-1"]
[WhiteElo "2642"]
[BlackElo "2814"]
[TimeControl "180+1"]
[EndTime "10:01:13 PDT"]
[Termination "lamomiajunior won by resignation"]

1. d4 {[%clk 0:02:49.6]} 1... Nf6 {[%clk 0:03:00.2]} 2. c4 {[%clk 0:02:50]} 2...
g6 {[%clk 0:03:00.9]} 3. Nf3 {[%clk 0:02:50]} 3... Bg7 {[%clk 0:03:01.5]} 4. Nc3
{[%clk 0:02:50]} 4... O-O {[%clk 0:03:01.9]} 5. g3 {[%clk 0:02:47.8]} 5... d6
{[%clk 0:02:58.5]} 6. Bg2 {[%clk 0:02:48.2]} 6... c6 {[%clk 0:02:55.5]} 7. O-O
{[%clk 0:02:48.4]} 7... Bf5 {[%clk 0:02:54.2]} 8. Qb3 {[%clk 0:02:47.6]} 8...
Qb6 {[%clk 0:02:52]} 9. Bg5 {[%clk 0:02:43.3]} 9... Nbd7 {[%clk 0:02:47.8]} 10.
Qxb6 {[%clk 0:02:39.7]} 10... Nxb6 {[%clk 0:02:41.4]} 11. Nd2 {[%clk 0:02:35.1]}
11... h6 {[%clk 0:02:21.3]} 12. Bxf6 {[%clk 0:02:24.1]} 12... Bxf6 {[%clk
0:02:22.2]} 13. e4 {[%clk 0:02:20.4]} 13... Be6 {[%clk 0:02:18.7]} 14. d5 {[%clk
0:02:14.8]} 14... Bd7 {[%clk 0:02:18.7]} 15. Rac1 {[%clk 0:02:02.8]} 15... Rac8
{[%clk 0:02:15.8]} 16. b3 {[%clk 0:01:41.2]} 16... a5 {[%clk 0:02:15.1]} 17. a4
{[%clk 0:01:24.6]} 17... Kg7 {[%clk 0:02:13.9]} 18. Rfe1 {[%clk 0:01:22.2]}
18... h5 {[%clk 0:02:12.8]} 19. h4 {[%clk 0:01:17.5]} 19... Bd4 {[%clk
0:02:07.2]} 20. Kf1 {[%clk 0:01:16.4]} 20... e5 {[%clk 0:02:03.3]} 21. dxe6
{[%clk 0:01:13.7]} 21... Bxe6 {[%clk 0:02:00.4]} 22. Ne2 {[%clk 0:01:12.3]}
22... Bb2 {[%clk 0:01:59.7]} 23. Rc2 {[%clk 0:01:11.7]} 23... Be5 {[%clk
0:01:59.8]} 24. f4 {[%clk 0:01:08.9]} 24... Bf6 {[%clk 0:01:58.6]} 25. Nf3
{[%clk 0:01:01.3]} 25... Nd7 {[%clk 0:01:58.1]} 26. Ned4 {[%clk 0:00:59]} 26...
Bg4 {[%clk 0:01:57.9]} 27. e5 {[%clk 0:00:57.3]} 27... dxe5 {[%clk 0:01:56.2]}
28. fxe5 {[%clk 0:00:57.7]} 28... Be7 {[%clk 0:01:56.7]} 29. e6 {[%clk
0:00:55.4]} 29... Nc5 {[%clk 0:01:55.6]} 30. exf7 {[%clk 0:00:37.2]} 30... Rxf7
{[%clk 0:01:56.5]} 31. Kg1 {[%clk 0:00:37.3]} 31... Rd8 {[%clk 0:01:56.9]} 32.
Rce2 {[%clk 0:00:28.4]} 32... Bf6 {[%clk 0:01:53.9]} 33. Nc2 {[%clk 0:00:19.6]}
33... Nxb3 {[%clk 0:01:49.6]} 34. Rf1 {[%clk 0:00:18.1]} 34... Bf5 {[%clk
0:01:47.6]} 35. Rb1 {[%clk 0:00:14.3]} 35... Nc5 {[%clk 0:01:45.1]} 36. Nfe1
{[%clk 0:00:14.9]} 36... Bc3 {[%clk 0:01:43]} 37. Re3 {[%clk 0:00:12.8]} 37...
Bxe1 {[%clk 0:01:39.4]} 0-1

[Event "Early-Titled-Tuesday-Blitz-May-07-2024"]
[Site "Chess.com"]
[Date "2024.05.07"]
[Round "10"]
[White "CruzWilliam"]
[Black "Shuvalov"]
[Result "0-1"]
[WhiteElo "2414"]
[BlackElo "2578"]
[TimeControl "180+1"]
[EndTime "10:01:14 PDT"]
[Termination "Shuvalov won by checkmate"]

1. d4 {[%clk 0:02:57.5]} 1... Nf6 {[%clk 0:02:59.5]} 2. c4 {[%clk 0:02:57.6]}
2... g6 {[%clk 0:02:59.2]} 3. Nc3 {[%clk 0:02:57.7]} 3... d5 {[%clk 0:02:59.6]}
4. Bf4 {[%clk 0:02:54.9]} 4... Bg7 {[%clk 0:02:56.2]} 5. e3 {[%clk 0:02:51.1]}
5... O-O {[%clk 0:02:52.1]} 6. Rc1 {[%clk 0:02:50.7]} 6... c5 {[%clk 0:02:46.2]}
7. dxc5 {[%clk 0:02:51.6]} 7... Be6 {[%clk 0:02:43.7]} 8. Nf3 {[%clk 0:02:34.6]}
8... Qa5 {[%clk 0:02:25]} 9. Nd4 {[%clk 0:02:21.9]} 9... Nc6 {[%clk 0:02:20.3]}
10. Nxe6 {[%clk 0:02:15.3]} 10... fxe6 {[%clk 0:02:21.2]} 11. Be2 {[%clk
0:02:12.8]} 11... Ne4 {[%clk 0:02:18.7]} 12. O-O {[%clk 0:02:07.3]} 12... Bxc3
{[%clk 0:01:59.6]} 13. bxc3 {[%clk 0:02:06.6]} 13... Nxc3 {[%clk 0:01:59.8]} 14.
Qd2 {[%clk 0:02:06.6]} 14... Nxe2+ {[%clk 0:01:58.3]} 15. Qxe2 {[%clk
0:02:06.4]} 15... Rad8 {[%clk 0:01:40.5]} 16. Qg4 {[%clk 0:01:56.1]} 16... Rf5
{[%clk 0:01:35.3]} 17. Rfe1 {[%clk 0:01:41.8]} 17... dxc4 {[%clk 0:01:29.9]} 18.
e4 {[%clk 0:01:37.7]} 18... Rf7 {[%clk 0:01:27.8]} 19. Be3 {[%clk 0:01:31.4]}
19... Ne5 {[%clk 0:01:23.7]} 20. Qxe6 {[%clk 0:01:24.6]} 20... Nd3 {[%clk
0:01:23.7]} 21. Qxc4 {[%clk 0:01:24.5]} 21... Nxe1 {[%clk 0:01:20.6]} 22. h4
{[%clk 0:01:13.8]} 22... Nd3 {[%clk 0:01:19]} 23. Rd1 {[%clk 0:01:11.7]} 23...
Ne5 {[%clk 0:01:19]} 24. Rxd8+ {[%clk 0:01:08.1]} 24... Qxd8 {[%clk 0:01:19.9]}
25. Qe6 {[%clk 0:01:08.2]} 25... Qd1+ {[%clk 0:01:17]} 26. Kh2 {[%clk 0:01:08]}
26... Ng4+ {[%clk 0:01:17.3]} 27. Kg3 {[%clk 0:01:07.9]} 27... Nxe3 {[%clk
0:01:16.3]} 28. fxe3 {[%clk 0:01:03]} 28... Qe1+ {[%clk 0:01:16.3]} 29. Kh3
{[%clk 0:01:03.4]} 29... Qxe3+ {[%clk 0:01:15.7]} 30. Kh2 {[%clk 0:01:03.4]}
30... Qf4+ {[%clk 0:01:15.7]} 31. Kh3 {[%clk 0:01:03.4]} 31... Kg7 {[%clk
0:01:13.9]} 32. h5 {[%clk 0:01:01.4]} 32... gxh5 {[%clk 0:01:12.5]} 33. g3
{[%clk 0:01:00.7]} 33... Qg4+ {[%clk 0:01:12.6]} 34. Qxg4+ {[%clk 0:01:00.4]}
34... hxg4+ {[%clk 0:01:13.5]} 35. Kxg4 {[%clk 0:01:01.2]} 35... Rf2 {[%clk
0:01:13.4]} 36. e5 {[%clk 0:01:00.4]} 36... Rxa2 {[%clk 0:01:12.6]} 37. c6
{[%clk 0:01:01.3]} 37... bxc6 {[%clk 0:01:12.3]} 38. e6 {[%clk 0:01:02.2]} 38...
Re2 {[%clk 0:01:11.8]} 39. Kh5 {[%clk 0:01:03.1]} 39... Rxe6 {[%clk 0:01:11.2]}
40. g4 {[%clk 0:01:04]} 40... a5 {[%clk 0:01:00.9]} 41. g5 {[%clk 0:01:04.9]}
41... a4 {[%clk 0:01:00.6]} 42. g6 {[%clk 0:01:05.8]} 42... Rxg6 {[%clk
0:00:59.2]} 43. Kh4 {[%clk 0:01:05.3]} 43... a3 {[%clk 0:00:59.6]} 44. Kh5
{[%clk 0:01:06.2]} 44... a2 {[%clk 0:00:59.9]} 45. Kh4 {[%clk 0:01:07.1]} 45...
a1=R {[%clk 0:00:58.5]} 46. Kh5 {[%clk 0:01:08]} 46... Rh1# {[%clk 0:00:58.5]}
0-1